Cogmind - Beta 13 @@@ ROGUE MODE // 2024.04.05 @ 18:47:56 Player: Crafthog Result: Destroyed by D-53 Grenadier with Mini Grenade Launcher Performance ------------- Evolutions (1) 500 Regions Visited (3) 600 Robots Destroyed (43) 215 Value Destroyed (837) 837 Prototype IDs (3) 60 Alien Tech Used (0) 0 Bonus (0) 0 TOTAL SCORE: 2212 Bonus ------- None Cogmind --------- Core Integrity 0/400 Matter 284/300 Energy 86/100 System Corruption 0% Temperature Cool (0) Movement Walking (180) Ox1 Location -9/Mines Parts ------- > --- POWER (1) -------- (None) > --- PROPULSION (4) --- VSS Leg > --- UTILITY (2) ------ Medium Storage Unit Signal Interpreter > --- WEAPON (2) ------- Slug Cannon > --- INVENTORY (10) --- Carbon-fiber Leg VSS Leg Sensor Array Improved Terrain Scanner Transport Network Coupler Improved Medium Laser Beam Cannon Grenade Launcher Peak State ------------ > --- POWER ------------ Heavy Ion Engine > --- PROPULSION ------- Aluminum Leg Aluminum Leg VSS Leg VSS Leg > --- UTILITY ---------- Medium Storage Unit Signal Interpreter > --- WEAPON ----------- Improved Assault Rifle Rocket Launcher > --- INVENTORY -------- Carbon-fiber Leg VSS Leg VSS Leg Sensor Array Improved Terrain Scanner Transport Network Coupler Improved Medium Laser Beam Cannon Slug Cannon Grenade Launcher [Rating: 20] Favorites ----------- Power Heavy Ion Engine Engine Heavy Ion Engine Propulsion Aluminum Leg Leg Aluminum Leg Utility Signal Interpreter Device Seismic Detector Storage Medium Storage Unit Processor Signal Interpreter Protection Light Armor Plating Weapon Assault Rifle Energy Cannon Beam Cannon Ballistic Gun Assault Rifle Ballistic Cannon Slug Cannon Launcher Grenade Launcher Build | -11 -10 -9 -9 ------- Run | Yrd Mat Mat Min Slots Evolved 2 | . . 2 . Power . | . . . . Propulsion 2 | . . 2 . Utility . | . . . . Weapon . | . . . . Parts Attached 35 | 7 5 16 7 Power 3 | 1 . 2 . Engine 3 | 1 . 2 . Core . | . . . . Reactor . | . . . . Propulsion 9 | 2 . 5 2 Treads . | . . . . Leg 9 | 2 . 5 2 Wheel . | . . . . Hover . | . . . . Flight . | . . . . Utility 11 | 2 3 3 3 Device 5 | 2 1 1 1 Storage 4 | . 1 1 2 Processor 1 | . 1 . . Hackware . | . . . . Protection 1 | . . 1 . Artifact . | . . . . Weapon 12 | 2 2 6 2 Energy Gun . | . . . . Energy Cannon 2 | . . 2 . Ballistic Gun 5 | 2 1 2 . Ballistic Cannon 1 | . . . 1 Launcher 4 | . 1 2 1 Special Weapon . | . . . . Impact Weapon . | . . . . Slashing Weapon . | . . . . Piercing Weapon . | . . . . Special Melee Weapon . | . . . . Unidentified Prototypes 1 | . . 1 . Parts Lost 7 | . . . 7 Power 1 | . . . 1 Propulsion 4 | . . . 4 Utility . | . . . . Weapon 2 | . . . 2 Highest Loss Streak 7 | . . . 7 To Critical Strikes . | . . . . Average Slot Usage (%) 96 | . 100 92 97 Engine 11 | . 14 11 10 Leg 35 | . 28 37 43 Device 6 | . 20 . . Storage 7 | . 2 9 9 Processor 9 | . 4 11 11 Energy Cannon 5 | . . 6 10 Ballistic Gun 17 | . 27 15 10 Naked Turns . | . . . . Heaviest Build 25 | 10 18 24 25 Greatest Support 44 | 20 20 44 44 Greatest Overweight (x) 1 | . . 1 1 Average Overweight (x) . | . . . . Largest Inventory Capacity 10 | 5 10 10 10 Average Capacity 8 | 5 5 9 9 Most Carried 10 | 5 7 10 10 Average Carried 7 | 2 4 8 9 Final Capacity 10 | 5 10 10 10 Final Carried 10 | 3 7 10 8 Class Distribution -------------------- 90% | Mutant 9% | Scavenger-Mutant Dominant Class ---------------- Mutant | -10/Materials Mutant | -9/Materials Mutant | -9/Mines Resources | -11 -10 -9 -9 ----------- Run | Yrd Mat Mat Min Matter Collected 848 | 310 84 348 106 Remotely . | . . . . Salvage Created 1456 | 113 373 856 114 Parts 100 | 7 23 67 3 Haulers Intercepted 5 | . 2 3 . Recyclers Shooed . | . . . . Parts Field Recycled . | . . . . Retrieved Matter . | . . . . Parts Self-Destructed . | . . . . Prevented . | . . . . Kills | -11 -10 -9 -9 ------- Run | Yrd Mat Mat Min Combat Hostiles Destroyed 24 | . 5 18 1 Guns 13 | . 4 8 1 Cannons 3 | . . 3 . AOE 8 | . 1 7 . Classes Destroyed 10 | 2 3 4 1 Worker 1 | . . 1 . Builder 1 | . . 1 . Tunneler 3 | 3 . . . Hauler 5 | . 2 3 . Recycler 4 | 1 1 1 1 Watcher 5 | . 1 4 . Swarmer 8 | . . 8 . Grunt 12 | . 5 7 . Duelist 1 | . . . 1 Sentry 3 | . . 3 . Best Kill Streak 5 | 3 3 5 1 Combat Bots Only 4 | . 2 4 1 Max Kills in Single Turn 5 | 1 2 5 1 Gunslinging . | . . . . Exploded 4 | . 1 4 . Melee . | . . . . Uniques/NPCs Destroyed . | . . . . Combat | -11 -10 -9 -9 -------- Run | Yrd Mat Mat Min Hostile Shots Fired 115 | . 19 74 22 Missed 30 | . 7 22 1 Damage Taken 1738 | . 170 638 930 Core 421 | . 18 178 225 Absorbed by Shields . | . . . . Core Remaining (%) 96 | 100 92 . . Volleys Fired 90 | 10 23 53 4 Largest 2 | 2 2 2 2 Hottest 90 | 40 50 90 83 Shots Fired 175 | 20 43 105 7 Gun 133 | 20 42 68 3 Cannon 37 | . . 35 2 Launcher 5 | . 1 2 2 Special . | . . . . Kinetic 134 | 20 42 68 4 Thermal 36 | . . 35 1 Explosive 5 | . 1 2 2 Electromagnetic . | . . . . Robot Hit Streak 21 | 9 11 21 3 Robot Miss Streak 4 | 3 3 4 1 Penetration Max . | . . . . Secondary Targets . | . . . . Shots Hit Robots 116 | 14 29 69 4 Core Hits 72 | 6 16 44 6 Critical Kills . | . . . . Critical Parts Destroyed . | . . . . Critical Strikes . | . . . . Melee Attacks . | . . . . Impact . | . . . . Slashing . | . . . . Piercing . | . . . . Sneak Attacks . | . . . . Combat Hostiles . | . . . . Follow-up Attacks . | . . . . Damage Inflicted 2015 | 167 401 1338 109 Guns 1027 | 167 296 518 46 Cannons 434 | . . 434 . Explosions 522 | . 94 367 61 Melee . | . . . . Ramming 32 | . 11 19 2 Kinetic 1027 | 167 296 518 46 Thermal 434 | . . 434 . Explosive 522 | . 94 367 61 Electromagnetic . | . . . . Impact . | . . . . Slashing . | . . . . Piercing . | . . . . Highest Corruption . | . . . . Average Corruption . | . . . . Corruption Purged . | . . . . Corruption Blocked . | . . . . Overload Shots . | . . . . Overflow Damage 2 | . . . 2 Projectiles . | . . . . Explosions 2 | . . . 2 Melee . | . . . . Knockbacks . | . . . . Impact . | . . . . Kinetic . | . . . . Secondary . | . . . . Self-Inflicted Damage 74 | . . 31 43 Shots 2 | . . 1 1 Rammed . | . . . . Targets Rammed 7 | . 4 2 1 Kicked 7 | . 4 2 1 Crushed . | . . . . Highest Temperature 93 | . 34 93 15 Average Temperature 24 | . 16 25 10 Received Heat Transfer 372 | . 108 264 . Siege Activations . | . . . . Robots Corrupted . | . . . . Combat Hostiles . | . . . . Parts Fried . | . . . . Impact Corruptions . | . . . . Robots Melted . | . . . . Combat Hostiles . | . . . . Parts Melted 1 | . . 1 . Heat Transferred 925 | . . 925 . Parts Sabotaged . | . . . . Parts Stolen . | . . . . Parts Stripped . | . . . . Power Chain Reactions . | . . . . Alert | -11 -10 -9 -9 ------- Run | Yrd Mat Mat Min Peak Influence 312 | 20 123 312 151 Initial 121 | . 13 51 121 Average 68 | 6 36 85 92 Maximum Alert Level 1 | . . 1 . Low Security (%) 96 | 100 100 92 100 Level 1 3 | . . 7 . Level 2 . | . . . . Level 3 . | . . . . Level 4 . | . . . . Level 5 . | . . . . High Security . | . . . . Max Security . | . . . . Squads Dispatched 2 | . 1 1 . Investigation 2 | . 1 1 . Extermination . | . . . . Reinforcement . | . . . . Assault . | . . . . Garrison . | . . . . Intercept . | . . . . Searches Triggered . | . . . . Construction Impeded . | . . . . Haulers Reinforced . | . . . . Active Scanning Responses . | . . . . Cargo Convoy Interrupts . | . . . . Stealth | -11 -10 -9 -9 --------- Run | Yrd Mat Mat Min Distress Signals 2 | . . 2 . Communications Jammed . | . . . . Distress Signals . | . . . . Times Spotted 44 | . 11 30 3 Peak Tracking Total 4 | . 4 4 2 Tactical Retreats . | . . . . Traps | -11 -10 -9 -9 ------- Run | Yrd Mat Mat Min Traps Triggered 1 | . . 1 . Indirectly . | . . . . Trap Hack Attempts . | . . . . Triggered . | . . . . Disarmed . | . . . . Reprogrammed . | . . . . Reused . | . . . . Traps Extracted . | . . . . Installed . | . . . . Triggered . | . . . . Machines | -11 -10 -9 -9 ---------- Run | Yrd Mat Mat Min Machines Disabled . | . . . . Max in Single Turn . | . . . . Machines Repaired . | . . . . Machines Dismantled . | . . . . Machines Sabotaged . | . . . . Overloaded Fab Kills . | . . . . Hacking | -11 -10 -9 -9 --------- Run | Yrd Mat Mat Min Machines Accessed 8 | . 3 5 . Terminals 6 | . 3 3 . Fabricators . | . . . . Repair Stations 1 | . . 1 . Recycling Units . | . . . . Scanalyzers 1 | . . 1 . Garrison Access . | . . . . Total Hacks 17 | . 9 8 . Successful 4 | . . 4 . Failed 13 | . 9 4 . Catastrophic 3 | . 2 1 . Database Lockouts . | . . . . Manual 13 | . 9 4 . Terminals 13 | . 9 4 . Fabricators . | . . . . Repair Stations 1 | . . 1 . Recycling Units . | . . . . Scanalyzers 3 | . . 3 . Garrison Access . | . . . . Terminal Hacks . | . . . . Fabricator Hacks . | . . . . Repair Station Hacks 1 | . . 1 . Scan Component 1 | . . 1 . Recycling Unit Hacks . | . . . . Scanalyzer 3 | . . 3 . Insert Component 2 | . . 2 . Analyze 1 | . . 1 . Garrison Access Hacks . | . . . . Unauthorized Hacks . | . . . . Terminals . | . . . . Fabricators . | . . . . Repair Stations . | . . . . Recycling Units . | . . . . Scanalyzers . | . . . . Garrison Access . | . . . . Data Cores Recovered . | . . . . Used . | . . . . Hacking Detections 7 | . 3 4 . Full Trace Events 1 | . 1 . . Feedback Events . | . . . . Feedback Blocked . | . . . . Robot Schematics Acquired . | . . . . Robots Built . | . . . . Authchips . | . . . . Time . | . . . . Total Robot Build Rating . | . . . . Part Schematics Acquired 1 | . . 1 . Parts Built . | . . . . Authchips . | . . . . Time . | . . . . Total Part Build Rating . | . . . . Parts Repaired . | . . . . Time . | . . . . Parts Recycled . | . . . . Recycled Matter . | . . . . Retrieved Matter . | . . . . Retrieved Components . | . . . . Parts Scanalyzed 1 | . . 1 . Part Schematics Acquired 1 | . . 1 . Parts Damaged . | . . . . Bothacking | -11 -10 -9 -9 ------------ Run | Yrd Mat Mat Min Used RIF Installer . | . . . . Robots Hacked . | . . . . Non-combat . | . . . . Combat . | . . . . Robot Hacks Applied . | . . . . Relay Couplers Released . | . . . . Fabnet Peak Effective % . | . . . . Robots Rewired . | . . . . Allies Hacked . | . . . . Hacks Repelled . | . . . . Allies | -11 -10 -9 -9 -------- Run | Yrd Mat Mat Min Total Allies 1 | . . . 1 Largest Group 1 | . . . 1 Highest-Rated Group 31 | . . . 31 Highest-Rated Ally 31 | . . . 31 Total Orders . | . . . . Ally Attacks . | . . . . Total Damage . | . . . . Kills . | . . . . Allies Corrupted . | . . . . Allies Melted . | . . . . Intel | -11 -10 -9 -9 ------- Run | Yrd Mat Mat Min Robot Analysis Total . | . . . . Derelict Logs Recovered . | . . . . Drone Launches . | . . . . Drone Recoveries . | . . . . Exploration | -11 -10 -9 -9 ------------- Run | Yrd Mat Mat Min Turns Passed 2589 | 166 725 1121 577 Spaces Moved 1783 | 114 528 633 508 Core 24 | 24 . . . Treads . | . . . . Legs 1759 | 90 528 633 508 Wheels . | . . . . Hover . | . . . . Flight . | . . . . Fastest Speed 50 | 50 120 105 90 Average Speed 119 | 105 120 132 105 Slowest Speed 190 | 120 120 190 180 Overloaded Moves . | . . . . Propulsion Burnouts . | . . . . Robots Hopped . | . . . . Cave-ins Triggered . | . . . . Exploration Rate (%) 34 | 6 50 28 55 Regions Visited 3 Branch Regions 1 Pre-discovered Areas . | . . . . Known Exits Taken 2 | . 1 1 . Unknown Exits Taken 1 | 1 . . . Scrap Searched 2 | . . . 2 Spaces Dug . | . . . . Terrain Destroyed 32 | . 4 15 13 Melee . | . . . . Projectile 1 | . . . 1 AOE 31 | . 4 15 12 Terrain Rammed . | . . . . Walls Destroyed . | . . . . Machines Disabled . | . . . . Actions | -11 -10 -9 -9 --------- Run | Yrd Mat Mat Min Total 2083 | 142 579 813 549 Wait 90 | 2 10 74 4 Move 1780 | 113 527 632 508 Hop . | . . . . Pick Up 55 | 10 7 23 15 Fast Attach . | . . . . Attach 15 | 7 . 3 5 Detach . | . . . . Swap 20 | . 5 13 2 Drop 26 | . 3 13 10 Fire 90 | 10 23 53 4 Melee . | . . . . Ram . | . . . . Kick 7 | . 4 2 1 Crush . | . . . . Escape Stasis . | . . . . Rewire . | . . . . Trap . | . . . . Miscellaneous . | . . . . Route ------- -11/Scrapyard -10/Materials (discovered 2 exits: *Mat x2) -9/Materials -9/Mines (discovered 2 exits: *Mat / *Exi) History --------- Turn | Location | Event 8 | -11/Scrapyard | Discovered new exit (range 15) 167 | -11/Scrapyard | Entered Materials 306 | -10/Materials | Build established: Mutant 629 | -10/Materials | Discovered new exit (range 4) 869 | -10/Materials | Discovered new exit (range 11) 889 | -10/Materials | Identified exit to Materials 892 | -10/Materials | Entered another Materials area 892 | -9/Materials | Evolved 2 slots: Propulsion x2 1844 | -9/Materials | Discovered new exit (range 14) 1909 | -9/Materials | Identified exit to Mines 2013 | -9/Materials | Entered Mines 2022 | -9/Mines | Met a Derelict bent on vengeance 2147 | -9/Mines | A weapon hastily lodged in a ceiling crevice suddenly fell to the ground 2314 | -9/Mines | Received a Rocket Launcher from a helpful Derelict 2331 | -9/Mines | Deemed a non-threat by the Exiles lab entrance 2332 | -9/Mines | Discovered new exit (range 5) 2374 | -9/Mines | Identified exit to Exiles 2392 | -9/Mines | Discovered new exit (range 8) 2409 | -9/Mines | Received a Mining Laser from a helpful Derelict 2414 | -9/Mines | Identified exit to Materials 2550 | -9/Mines | Assembled infested the area 2575 | -9/Mines | Core integrity fell below 50% 2587 | -9/Mines | Core integrity fell below 20% 2590 | -9/Mines | Destroyed by D-53 Grenadier with Mini Grenade Launcher Last Messages --------------- The unstable cave ceiling collapses. VSS Leg destroyed. T-07 Excavator destroyed. K-01 Serf destroyed. The unstable cave ceiling collapses. U-05 Engineer lays Concrete. U-05 Engineer builds a Wall. Rocket Launcher destroyed. The unstable cave ceiling collapses. VSS Leg destroyed. The unstable cave ceiling collapses. Imp. Assault Rifle destroyed. The unstable cave ceiling collapses. Aluminum Leg destroyed. Hvy. Ion Engine destroyed. The unstable cave ceiling collapses. D-53 Grenadier destroyed. Acquired 21 matter. The unstable cave ceiling collapses. U-05 Engineer builds a Wall. Map ----- +----------------------------------------------------+ | ??????????????????????????????????# #?# #????? | | ???????????????????????????????????# ### #????? | | ????????????????????????????????????# ##!#????? | | ????????????????????????????????????# #%#????? | | ?????????????????????????????????????# !/#????? | | ?????????????????????????????????????## ###????? | | ??????????????????????????????????????# #??????? | | ?????????????????????????????????????## #??????? | | ????????????????????????????????????## ##??????? | | ???????????????????????????????????## ##???????? | | ???????????????????????????????##### #????????? | | ???????????????????????????##### !#????????? | | ???????????????????????????# ! #????????? | | ????????####??????????????# ###*=%#????????? | | ????????? ??????????????# ####?## #????????? | | ?????????? ?????????????## ???????# =#????????? | | ???????????# ###??????????##????????#%%#????????? | | ???????????# # #####???????????????# #????????? | | ???????????# ####????????????# #????????? | | ??????????## ##??????###### ###??????? | | ??????????# # #?##???# #??????? | | ???????# ##### # ## ##### """" #??????? | | ???????# u | d """" #??????? | | ???????###### # #### """" #??????? | | ???????????## ##?# #??????? | | ????????????## # @ #?# #??????? | | ?????????????# #?###########??????? | | ????########## # #??????###?????????? | | ????# ## #?????## ###???????? | | ????# ############## #?????# ###?????? | | ????# ????????????##++###### ####### ## #?????? | | ????#?????????????# #???# ####>#?????? | | ??????????????????# #???# ##############?????? | | ??????????????????# #???# ####### ##??????? | | ?????????????????# #???# <| ##?????? | | ?????????????????## #???# #?????? | | ??????????????????######???###### ## #????? | | ????????????????????????????????## #### #????? | | ?????????????????????????????????#####??## #????? | | ??????????????????????????????????????????###????? | | ?????????????????????????????????????????????????? | | | | | | | | | | | | | | | | | | | +----------------------------------------------------+ Best States ------------- Heat Dissipation 28 Energy Generation 14 Energy Capacity 280 Matter Stores 300 Matter Capacity 300 Sight Range 16 Robot Scan Range 14 Terrain Scan Range 16 Terrain Scan Density 10 Armor Coverage 150 Evasion (%) 55 Item Schematics ----------------- Imp. Assault Rifle | -9/Materials | Scanalyzed Robot Schematics ------------------ None Fabricated ------------ Nothing Alien Tech Used ----------------- None Achievements -------------- Safety First Challenges ------------ None Game ------ Seed CombatChromaticMicrothruster Manual? 0 Play Time 00:31:23 Cumulative 3.4 hours Start 2024.04.05 @ 17:11:20 End 2024.04.05 @ 18:47:56 Sessions 1 Manual Loads 0 Difficulty Rogue Special Mode None Game No. 8 Rogue 8 Adventurer 0 Explorer 0 Win Type - Total 0 Types 0/0/0/0/0/0/0/0/0 Lore% 3 Gallery% 7 Achievement% 9 Wizard Run 0 Options --------- Layout 1 ASCII 0 Keyboard 0 Movement Arrows Keybinds 0 Fullscreen 1 Font 24/Smallcaps Map View 76x35 Zoom Use 0% Tactical HUD 0 Map Filters NONE Filters NONE Steam 1 RUN: 178a6561-23f4-4990-9e7e-835560d9160c